fUST/lending_fUST_20240721
["ID","MTS","AMOUNT","RATE_DAILY","PERIOD"]
[332826531,1721555467854,-500.0,0.00014246,2]
[332826532,1721555467863,-500.0,0.00014246,2]
[332826533,1721555467872,-500.0,0.00014246,2]
[332826534,1721555467881,-500.0,0.00014246,2]
[332826535,1721555467891,-500.0,0.00014246,2]
[332826536,1721555467900,-613.36,0.00014246,2]
[332826537,1721555467909,-500.0,0.00014246,2]
[332826538,1721555467918,-500.0,0.00014246,2]
[332826539,1721555467928,-500.0,0.00014246,2]
[332826540,1721555467937,-500.0,0.00014246,2]
[332826541,1721555467946,-500.0,0.00014246,2]
[332826542,1721555467955,-609.08,0.00014246,2]
[332826543,1721555467964,-500.0,0.00014246,2]
[332826544,1721555467973,-500.0,0.00014246,2]
[332826545,1721555467982,-500.0,0.00014246,2]
[332826546,1721555467991,-230.56124379,0.00014246,2]
[332826547,1721555468000,-535.6877045,0.00014246,2]
[332826548,1721555468009,-500.0,0.00014246,2]
[332826549,1721555468019,-500.0,0.00014246,2]
[332826550,1721555468029,-500.0,0.00014246,2]
[332826551,1721555468038,-500.0,0.00014246,2]
[332826552,1721555468047,-568.1839429,0.00014246,2]
[332826553,1721555468056,-500.0,0.00014246,2]
[332826554,1721555468066,-500.0,0.00014246,2]
[332826555,1721555468075,-313.10705622,0.00014246,2]
[332826556,1721555468084,-510.66828284,0.00014246,2]
[332826557,1721555468093,-500.0,0.00014246,2]
[332826558,1721555468104,-500.0,0.00014246,2]
[332826559,1721555468115,-574.71591286,0.00014246,2]
[332826560,1721555468124,-500.0,0.00014246,2]
[332826561,1721555468133,-500.0,0.00014246,2]
[332826562,1721555468143,-500.0,0.00014246,2]
[332826563,1721555468152,-485.72514526,0.00014246,2]
[332826564,1721555468162,-440.48102587,0.00014246,2]
[332826565,1721555468171,-500.0,0.00014246,2]
[332826566,1721555468180,-1324.26,0.00014246,2]
[332826567,1721555468190,-500.0,0.00014246,2]
[332826568,1721555468200,-889.63,0.00014246,2]
[332826569,1721555468210,-500.0,0.00014246,2]
[332826570,1721555468220,-500.0,0.00014246,2]
[332826571,1721555468229,-500.0,0.00014246,2]
[332826572,1721555468239,-725.84,0.00014246,2]
[332826573,1721555468248,-500.0,0.00014246,2]
[332826574,1721555468257,-2453.11,0.00014246,2]
[332826575,1721555468267,-2502.19,0.00014246,2]
[332826576,1721555468277,-500.0,0.00014246,2]
[332826577,1721555468287,-607.0,0.00014246,2]
[332826578,1721555468297,-528.97,0.00014246,2]
[332826579,1721555468307,-658.1,0.00014246,2]
[332826580,1721555468318,-1073.15,0.00014246,2]
[332826581,1721555468328,-500.0,0.00014246,2]
[332826582,1721555468337,-755.32,0.00014246,2]
[332826583,1721555468347,-500.0,0.00014246,2]
[332826584,1721555468358,-500.0,0.00014246,2]
[332826585,1721555468368,-594.60172005,0.00014246,2]
[332826586,1721555468377,-500.0,0.00014246,2]
[332826587,1721555468387,-515.19570071,0.00014246,2]
[332826588,1721555468397,-500.0,0.00014246,2]
[332826589,1721555468407,-500.0,0.00014246,2]
[332826590,1721555468417,-502.1748445,0.00014246,2]
[332826591,1721555468427,-733.92,0.00014246,2]
[332826592,1721555468437,-500.0,0.00014246,2]
[332826593,1721555468447,-500.0,0.00014246,2]
[332826594,1721555468457,-483.70953962,0.00014246,2]
[332826595,1721555468467,-500.0,0.00014246,2]
[332826596,1721555468476,-596.56,0.00014246,2]
[332826597,1721555468486,-607.1,0.00014246,2]
[332826598,1721555468495,-554.81,0.00014246,2]
[332826599,1721555468505,-500.0,0.00014246,2]
[332826600,1721555468515,-500.0,0.00014246,2]
[332826601,1721555468525,-500.0,0.00014246,2]
[332826602,1721555468535,-1820.2,0.00014246,2]
[332826603,1721555468544,-1181.32,0.00014246,2]
[332826604,1721555468554,-1714.34,0.00014246,2]
[332826605,1721555468564,-500.0,0.00014246,2]
[332826606,1721555468574,-500.0,0.00014246,2]
[332826607,1721555468584,-513.01,0.00014246,2]
[332826608,1721555468593,-662.59,0.00014246,2]
[332826609,1721555468604,-500.0,0.00014246,2]
[332826610,1721555468615,-500.0,0.00014246,2]
[332826611,1721555468624,-500.0,0.00014246,2]
[332826612,1721555468634,-2516.03,0.00014246,2]
[332826613,1721555468643,-643.79,0.00014246,2]
[332826614,1721555468652,-554.61,0.00014246,2]
[332826615,1721555468662,-731.29,0.00014246,2]
[332826616,1721555468672,-500.0,0.00014246,2]
[332826617,1721555468681,-500.0,0.00014246,2]
[332826618,1721555468691,-1752.98,0.00014246,2]
[332826619,1721555468700,-814.53,0.00014246,2]
[332826620,1721555468709,-500.0,0.00014246,2]
[332826621,1721555468719,-500.0,0.00014246,2]
[332826622,1721555468729,-500.0,0.00014246,2]
[332826623,1721555468738,-500.0,0.00014246,2]
[332826624,1721555468748,-500.0,0.00014246,2]
[332826625,1721555468758,-535.79,0.00014246,2]
[332826626,1721555468768,-508.55852029,0.00014246,2]
[332826627,1721555468778,-500.0,0.00014246,2]
[332826628,1721555468788,-500.0,0.00014246,2]
[332826629,1721555468798,-266.5151735,0.00014246,2]
[332826630,1721555468807,-779.85,0.00014246,2]
[332826631,1721555468817,-567.93378754,0.00014246,2]
[332826632,1721555468827,-500.0,0.00014246,2]
[332826633,1721555468836,-548.47143532,0.00014246,2]
[332826634,1721555468846,-829.85,0.00014246,2]
[332826635,1721555468856,-827.08,0.00014246,2]
[332826636,1721555468866,-1004.92,0.00014246,2]
[332826637,1721555468876,-500.0,0.00014246,2]
[332826638,1721555468886,-574.58,0.00014246,2]
[332826639,1721555468896,-500.0,0.00014246,2]
[332826640,1721555468905,-500.0,0.00014246,2]
[332826641,1721555468915,-500.0,0.00014246,2]
[332826642,1721555468925,-500.0,0.00014246,2]
[332826643,1721555468934,-500.0,0.00014246,2]
[332826644,1721555468944,-545.06,0.00014246,2]
[332826645,1721555468954,-500.0,0.00014246,2]
[332826646,1721555468963,-1404.46,0.00014246,2]
[332826647,1721555468974,-500.0,0.00014246,2]
[332826648,1721555468984,-500.0,0.00014246,2]
[332826649,1721555468994,-833.83,0.00014246,2]
[332826650,1721555469005,-1209.24,0.00014246,2]
[332826651,1721555469017,-1628.16,0.00014246,2]
[332826652,1721555469029,-661.79,0.00014246,2]
[332826653,1721555469040,-219.25908476,0.00014246,2]
[332826654,1721555469051,-500.0,0.00014246,2]
[332826655,1721555469063,-500.0,0.00014246,2]
[332826656,1721555469074,-3665.72,0.00014246,2]
[332826657,1721555469084,-500.0,0.00014246,2]
[332826658,1721555469094,-500.0,0.00014246,2]
[332826659,1721555469107,-500.0,0.00014246,2]
[332826660,1721555469116,-1370.23,0.00014246,2]
[332826661,1721555469127,-559.11867643,0.00014246,2]
[332826662,1721555469137,-500.0,0.00014246,2]
[332826663,1721555469146,-500.0,0.00014246,2]
[332826664,1721555469156,-1643.03,0.00014246,2]
[332826665,1721555469166,-500.0,0.00014246,2]
[332826666,1721555469175,-746.0,0.00014246,2]
[332826667,1721555469184,-519.0,0.00014246,2]
[332826668,1721555469195,-500.0,0.00014246,2]
[332826669,1721555469205,-599.93952725,0.00014246,2]
[332826670,1721555469216,-500.0,0.00014246,2]
[332826671,1721555469226,-1302.9,0.00014246,2]
[332826672,1721555469236,-691.51,0.00014246,2]
[332826673,1721555469246,-500.0,0.00014246,2]
[332826674,1721555469255,-1951.57,0.00014246,2]
[332826675,1721555469265,-500.0,0.00014246,2]
[332826676,1721555469275,-851.67,0.00014246,2]
[332826677,1721555469286,-1638.21,0.00014246,2]
[332826678,1721555469297,-500.0,0.00014246,2]
[332826679,1721555469308,-1766.14,0.00014246,2]
[332826680,1721555469318,-502.78378867,0.00014246,2]
[332826681,1721555469328,-500.0,0.00014246,2]
[332826682,1721555469338,-500.0,0.00014246,2]
[332826683,1721555469349,-500.0,0.00014246,2]
[332826684,1721555469359,-500.0,0.00014246,2]
[332826685,1721555469369,-500.0,0.00014246,2]
[332826686,1721555469379,-500.0,0.00014246,2]
[332826687,1721555469389,-891.54,0.00014246,2]
[332826688,1721555469399,-501.07300065,0.00014246,2]
[332826689,1721555469409,-500.0,0.00014246,2]
[332826690,1721555469419,-850.08,0.00014246,2]
[332826691,1721555469428,-500.0,0.00014246,2]
[332826692,1721555469438,-607.9,0.00014246,2]
[332826693,1721555469448,-500.0,0.00014246,2]
[332826694,1721555469457,-2629.93,0.00014246,2]
[332826695,1721555469467,-382.7536594,0.00014246,2]
[332826696,1721555469477,-3809.04,0.00014246,2]
[332826697,1721555469487,-500.0,0.00014246,2]
[332826698,1721555469496,-500.0,0.00014246,2]
[332826699,1721555469506,-725.31,0.00014246,2]
[332826700,1721555469517,-1657.69,0.00014246,2]
[332826701,1721555469526,-634.57,0.00014246,2]
[332826702,1721555469536,-845.97,0.00014246,2]
[332826703,1721555469546,-500.0,0.00014246,2]
[332826704,1721555469556,-500.0,0.00014246,2]
[332826705,1721555469566,-500.0,0.00014246,2]
[332826706,1721555469577,-500.0,0.00014246,2]
[332826707,1721555469587,-500.0,0.00014246,2]
[332826708,1721555469597,-500.0,0.00014246,2]
[332826709,1721555469610,-783.25,0.00014246,2]
[332826710,1721555469621,-500.0,0.00014246,2]
[332826711,1721555469636,-500.0,0.00014246,2]
[332826712,1721555469646,-500.0,0.00014246,2]
[332826713,1721555469655,-643.52,0.00014246,2]
[332826714,1721555469665,-500.0,0.00014246,2]
[332826715,1721555469674,-500.0,0.00014246,2]
[332826716,1721555469684,-1329.69,0.00014246,2]
[332826717,1721555469693,-500.0,0.00014246,2]
[332826718,1721555469703,-800.17,0.00014246,2]
[332826719,1721555469713,-653.3,0.00014246,2]
[332826720,1721555469722,-1574.12,0.00014246,2]
[332826721,1721555469732,-500.0,0.00014246,2]
[332826722,1721555469741,-500.0,0.00014246,2]
[332826723,1721555469751,-500.0,0.00014246,2]
[332826724,1721555469761,-500.0,0.00014246,2]
[332826725,1721555469771,-500.0,0.00014246,2]
[332826726,1721555469781,-692.3,0.00014246,2]
[332826727,1721555469791,-2560.81,0.00014246,2]
[332826728,1721555469801,-1699.44,0.00014246,2]
[332826729,1721555469811,-500.0,0.00014246,2]
[332826730,1721555469821,-500.0,0.00014246,2]
[332826731,1721555469831,-500.0,0.00014246,2]
[332826732,1721555469840,-945.87,0.00014246,2]
[332826733,1721555469850,-803.31,0.00014246,2]
[332826734,1721555469862,-4108.8,0.00014246,2]
[332826735,1721555469873,-312.5963119,0.00014246,2]
[332826736,1721555469883,-500.0,0.00014246,2]
[332826737,1721555469897,-597.03867378,0.00014246,2]
[332826738,1721555469907,-2337.32,0.00014246,2]
[332826739,1721555469917,-233.69325146,0.00014246,2]
[332826740,1721555469927,-500.0,0.00014246,2]
[332826741,1721555469936,-505.01623739,0.00014246,2]
[332826742,1721555469947,-500.0,0.00014246,2]
[332826743,1721555469957,-567.17,0.00014246,2]
[332826744,1721555469966,-844.85,0.00014246,2]
[332826745,1721555469976,-588.49,0.00014246,2]
[332826746,1721555469987,-500.0,0.00014246,2]
[332826747,1721555469998,-439.78490137,0.00014246,2]
[332826748,1721555470008,-500.0,0.00014246,2]
[332826749,1721555470020,-500.0,0.00014246,2]
[332826750,1721555470035,-500.0,0.00014246,2]
[332826751,1721555470045,-816.43,0.00014246,2]
[332826752,1721555470057,-6949.94,0.00014246,2]
[332826753,1721555470068,-500.0,0.00014246,2]
[332826754,1721555470078,-500.0,0.00014246,2]
[332826755,1721555470089,-326.43806644,0.00014246,2]
[332826756,1721555470099,-2185.03,0.00014246,2]
[332826757,1721555470111,-502.2196872,0.00014246,2]
[332826758,1721555470120,-3211.54,0.00014246,2]
[332826759,1721555470130,-944.31,0.00014246,2]
[332826760,1721555470140,-1116.24,0.00014246,2]
[332826761,1721555470150,-500.0,0.00014246,2]
[332826762,1721555470160,-500.0,0.00014246,2]
[332826763,1721555470170,-1149.02,0.00014246,2]
[332826764,1721555470180,-500.0,0.00014246,2]
[332826765,1721555470190,-583.31,0.00014246,2]
[332826766,1721555470199,-500.0,0.00014246,2]
[332826767,1721555470209,-632.18,0.00014246,2]
[332826768,1721555470220,-500.0,0.00014246,2]
[332826769,1721555470230,-5623.74,0.00014246,2]
[332826770,1721555470240,-2388.12,0.00014246,2]
[332826771,1721555470250,-1458.49,0.00014246,2]
[332826772,1721555470260,-500.0,0.00014246,2]
[332826773,1721555470270,-345.89116728,0.00014246,2]
[332826774,1721555470279,-1024.76,0.00014246,2]
[332826775,1721555470290,-500.0,0.00014246,2]
[332826776,1721555470300,-957.16,0.00014246,2]
[332826777,1721555470310,-509.71574384,0.00014246,2]
[332826778,1721555470319,-500.0,0.00014246,2]
[332826779,1721555470329,-503.44195883,0.00014246,2]
[332826780,1721555470339,-500.0,0.00014246,2]
[332826781,1721555470348,-500.0,0.00014246,2]
[332826782,1721555470359,-973.9,0.00014246,2]
[332826783,1721555470368,-415.70194801,0.00014246,2]
[332826784,1721555470378,-500.0,0.00014246,2]
[332826785,1721555470388,-632.5,0.00014246,2]
[332826786,1721555470398,-500.0,0.00014246,2]
[332826787,1721555470409,-2617.63,0.00014246,2]
[332826788,1721555470419,-506.18690095,0.00014246,2]
[332826789,1721555470429,-500.0,0.00014246,2]
[332826790,1721555470439,-500.0,0.00014246,2]
[332826791,1721555470449,-571.42936053,0.00014246,2]
[332826792,1721555470459,-500.0,0.00014246,2]
[332826793,1721555470470,-500.0,0.00014246,2]
[332826794,1721555470480,-500.0,0.00014246,2]
[332826795,1721555470490,-500.0,0.00014246,2]
[332826796,1721555470500,-500.0,0.00014246,2]
[332826797,1721555470510,-2068.81,0.00014246,2]
[332826798,1721555470520,-695.53,0.00014246,2]
[332826799,1721555470531,-16179.83,0.00014246,2]
[332826800,1721555470540,-1724.01,0.00014246,2]
[332826801,1721555470550,-500.0,0.00014246,2]
[332826802,1721555470560,-500.0,0.00014246,2]
[332826803,1721555470749,-500.0,0.00014246,2]
[332826804,1721555470759,-1904.33,0.00014246,2]
[332826805,1721555470769,-500.0,0.00014246,2]
[332826806,1721555470779,-3028.5,0.00014246,2]
[332826807,1721555470788,-500.0,0.00014246,2]
[332826808,1721555470798,-5029.23,0.00014246,2]
[332826809,1721555470807,-2749.41,0.00014246,2]
[332826810,1721555470817,-500.0,0.00014246,2]
[332826811,1721555470826,-707.38,0.00014246,2]
[332826812,1721555470835,-1511.47,0.00014246,2]
[332826813,1721555470845,-516.24,0.00014246,2]
[332826814,1721555470855,-500.0,0.00014246,2]
[332826815,1721555470864,-500.0,0.00014246,2]
[332826816,1721555470873,-500.0,0.00014246,2]
[332826817,1721555470883,-500.0,0.00014246,2]
[332826818,1721555470892,-500.0,0.00014246,2]
[332826819,1721555470901,-500.0,0.00014246,2]
[332826820,1721555470911,-500.0,0.00014246,2]
[332826821,1721555470920,-500.0,0.00014246,2]
[332826822,1721555470929,-777.05,0.00014246,2]
[332826823,1721555470938,-500.0,0.00014246,2]
[332826824,1721555470948,-500.0,0.00014246,2]
[332826825,1721555470957,-517.8,0.00014246,2]
[332826826,1721555470966,-500.0,0.00014246,2]
[332826827,1721555470975,-2876.98,0.00014246,2]
[332826828,1721555470985,-6758.6,0.00014246,2]
[332826829,1721555470994,-522.46902694,0.00014246,2]
[332826830,1721555471004,-531.23,0.00014246,2]
[332826831,1721555471013,-500.0,0.00014246,2]
[332826832,1721555471024,-500.0,0.00014246,2]
[332826833,1721555471035,-4427.76,0.00014246,2]
[332826834,1721555471044,-2068.27,0.00014246,2]
[332826835,1721555471053,-956.1,0.00014246,2]
[332826836,1721555471063,-10406.05,0.00014246,2]
[332826837,1721555471073,-500.0,0.00014246,2]
[332826838,1721555471082,-500.0,0.00014246,2]
[332826839,1721555471092,-500.0,0.00014246,2]
[332826840,1721555471102,-500.0,0.00014246,2]
[332826841,1721555471112,-1432.76,0.00014246,2]
[332826842,1721555471122,-500.0,0.00014246,2]
[332826843,1721555471131,-500.0,0.00014246,2]
[332826844,1721555471140,-500.0,0.00014246,2]
[332826845,1721555471149,-500.0,0.00014246,2]
[332826846,1721555471159,-1086.18,0.00014246,2]
[332826847,1721555471168,-500.0,0.00014246,2]
[332826848,1721555471177,-507.77035777,0.00014246,2]
[332826849,1721555471187,-1054.99,0.00014246,2]
[332826850,1721555471196,-228.07244015,0.00014246,2]
[332826851,1721555471205,-550.19824686,0.00014246,2]
[332826852,1721555471215,-500.0,0.00014246,2]
[332826853,1721555471225,-593.43,0.00014246,2]
[332826854,1721555471234,-3630.44,0.00014246,2]
[332826855,1721555471244,-501.92660683,0.00014246,2]
[332826856,1721555471255,-541.51,0.00014246,2]
[332826857,1721555471265,-975.16,0.00014246,2]
[332826858,1721555471275,-1109.28,0.00014246,2]
[332826859,1721555471285,-337.30584574,0.00014246,2]
[332826860,1721555471295,-500.0,0.00014246,2]
[332826861,1721555471304,-500.0,0.00014246,2]
[332826862,1721555471314,-500.0,0.00014246,2]
[332826863,1721555471323,-500.0,0.00014246,2]
[332826864,1721555471333,-2529.69,0.00014246,2]
[332826865,1721555471342,-500.0,0.00014246,2]
[332826866,1721555471351,-500.0,0.00014246,2]
[332826867,1721555471362,-508.70727902,0.00014246,2]
[332826868,1721555471372,-500.0,0.00014246,2]
[332826869,1721555471383,-500.0,0.00014246,2]
[332826870,1721555471392,-500.0,0.00014246,2]
[332826871,1721555471402,-565.06,0.00014246,2]
[332826872,1721555471412,-500.0,0.00014246,2]
[332826873,1721555471421,-500.0,0.00014246,2]
[332826874,1721555471431,-1908.54,0.00014246,2]
[332826875,1721555471440,-500.0,0.00014246,2]
[332826876,1721555471449,-500.0,0.00014246,2]
[332826877,1721555471459,-500.0,0.00014246,2]
[332826878,1721555471468,-1350.01,0.00014246,2]
[332826879,1721555471478,-1804.15,0.00014246,2]
[332826880,1721555471487,-500.0,0.00014246,2]
[332826881,1721555471497,-1208.6,0.00014246,2]
[332826882,1721555471507,-500.0,0.00014246,2]
[332826883,1721555471516,-500.0,0.00014246,2]
[332826884,1721555471526,-1069.63,0.00014246,2]
[332826885,1721555471536,-761.71,0.00014246,2]
[332826886,1721555471545,-500.0,0.00014246,2]
[332826887,1721555471554,-1231.03,0.00014246,2]
[332826888,1721555471564,-500.0,0.00014246,2]
[332826889,1721555471574,-1523.16,0.00014246,2]
[332826890,1721555471584,-500.0,0.00014246,2]
[332826891,1721555471594,-2159.65,0.00014246,2]
[332826892,1721555471604,-500.0,0.00014246,2]
[332826893,1721555471614,-500.0,0.00014246,2]
[332826894,1721555471628,-1372.42,0.00014246,2]
[332826895,1721555471638,-500.0,0.00014246,2]
[332826896,1721555471650,-500.0,0.00014246,2]
[332826897,1721555471660,-2905.52,0.00014246,2]
[332826898,1721555471670,-500.0,0.00014246,2]
[332826899,1721555471679,-500.0,0.00014246,2]
[332826900,1721555471688,-632.24271543,0.00014246,2]
[332826901,1721555471698,-736.04,0.00014246,2]
[332826902,1721555471707,-500.0,0.00014246,2]
[332826903,1721555471717,-1936.8,0.00014246,2]
[332826904,1721555471726,-8727.07,0.00014246,2]
[332826905,1721555471735,-613.12,0.00014246,2]
[332826906,1721555471745,-294.33173265,0.00014246,2]
[332826907,1721555471754,-825.75,0.00014246,2]
[332826908,1721555471763,-500.0,0.00014246,2]
[332826909,1721555471773,-500.0,0.00014246,2]
[332826910,1721555471783,-500.0,0.00014246,2]
[332826911,1721555471794,-229.03859026,0.00014246,2]
[332826912,1721555471805,-659.28,0.00014246,2]
[332826913,1721555471816,-500.0,0.00014246,2]
[332826914,1721555471827,-500.0,0.00014246,2]
[332826915,1721555471837,-500.0,0.00014246,2]
[332826916,1721555471848,-500.0,0.00014246,2]
[332826917,1721555471860,-360.26413288,0.00014246,2]
[332826918,1721555471871,-576.42,0.00014246,2]
[332826919,1721555471880,-11437.01,0.00014246,2]
[332826920,1721555471890,-500.0,0.00014246,2]
[332826921,1721555471899,-500.0,0.00014246,2]
[332826922,1721555471908,-500.0,0.00014246,2]
[332826923,1721555471918,-500.0,0.00014246,2]
[332826924,1721555471927,-915.6,0.00014246,2]
[332826925,1721555471937,-500.0,0.00014246,2]
[332826926,1721555471946,-502.10764251,0.00014246,2]
[332826927,1721555471956,-343.74331165,0.00014246,2]
[332826928,1721555471965,-500.0,0.00014246,2]
[332826929,1721555471975,-1115.74,0.00014246,2]
[332826930,1721555471984,-384.53519204,0.00014246,2]
[332826931,1721555471994,-986.73,0.00014246,2]
[332826932,1721555472004,-999.52,0.00014246,2]
[332826933,1721555472013,-500.0,0.00014246,2]
[332826934,1721555472024,-500.0,0.00014246,2]
[332826935,1721555472038,-500.0,0.00014246,2]
[332826936,1721555472047,-1758.85,0.00014246,2]
[332826937,1721555472056,-1641.25,0.00014246,2]
[332826938,1721555472067,-500.0,0.00014246,2]
[332826939,1721555472078,-500.0,0.00014246,2]
[332826940,1721555472089,-957.56,0.00014246,2]
[332826941,1721555472101,-500.0,0.00014246,2]
[332826942,1721555472111,-500.0,0.00014246,2]
[332826943,1721555472120,-562.35,0.00014246,2]
[332826944,1721555472132,-1680.3,0.00014246,2]
[332826945,1721555472143,-500.0,0.00014246,2]
[332826946,1721555472153,-500.0,0.00014246,2]
[332826947,1721555472163,-5123.06,0.00014246,2]
[332826948,1721555472173,-6994.79,0.00014246,2]
[332826949,1721555472183,-500.0,0.00014246,2]
[332826950,1721555472194,-2013.0,0.00014246,2]
[332826951,1721555472205,-500.0,0.00014246,2]
[332826952,1721555472215,-1205.93,0.00014246,2]
[332826953,1721555472225,-500.0,0.00014246,2]
[332826954,1721555472234,-2326.38,0.00014246,2]
[332826955,1721555472244,-534.27,0.00014246,2]
[332826956,1721555472253,-506.59340255,0.00014246,2]
[332826957,1721555472263,-407.41293383,0.00014246,2]
[332826958,1721555472272,-812.3,0.00014246,2]
[332826959,1721555472281,-588.16558368,0.00014246,2]
[332826960,1721555472290,-500.0,0.00014246,2]
[332826961,1721555472300,-500.0,0.00014246,2]
[332826962,1721555472309,-500.0,0.00014246,2]
[332826963,1721555472319,-750.0,0.00014247,2]
[332826964,1721555472330,-174.495626,0.00014329,2]
[332826965,1721555472341,-158.357509,0.00014329,2]
[332826966,1721555472351,-156.381405,0.00014329,2]
[332826967,1721555472362,-1629.72819088,0.00014377,2]
[332826968,1721555472373,-479.377552,0.00014379,2]
[332826969,1721555472384,-421.212858,0.00014379,2]
[332826970,1721555472394,-353.685934,0.00014379,2]
[332826971,1721555472405,-288.437872,0.00014379,2]
[332826972,1721555472415,-731.316126,0.00014386,2]
[332826973,1721555472424,-418.789504,0.00014386,2]
[332826974,1721555472434,-151.944204,0.00014386,2]
[332826975,1721555472444,-193.245889,0.00014386,2]
[332826976,1721555472455,-165.451103,0.00014386,2]
[332826977,1721555472467,-599.0,0.000144,2]
[332826978,1721555472479,-620.22787728,0.0001444,2]
[332826979,1721555472489,-1453.14,0.0001452,2]
[332826980,1721555472500,-500.0,0.0001452,2]
[332826981,1721555472511,-331.07328402,0.0001452,2]
[332826982,1721555472523,-500.0,0.0001452,2]
[332826983,1721555472533,-500.0,0.0001452,2]
[332826984,1721555472542,-506.405325,0.0001452,2]
[332826985,1721555472552,-500.0,0.0001452,2]
[332826986,1721555472561,-501.77585729,0.0001452,2]
[332826987,1721555472570,-1466.7,0.0001452,2]
[332826988,1721555472580,-367.97834737,0.0001452,2]
[332826989,1721555472592,-442.5503441,0.0001452,2]
[332826990,1721555472604,-500.0,0.0001452,2]
[332826991,1721555472617,-500.0,0.0001452,2]
[332826992,1721555472627,-500.0,0.0001452,2]
[332826993,1721555472638,-500.0,0.0001452,2]
[332826994,1721555472649,-809.83,0.0001452,2]
[332826995,1721555472659,-790.39,0.0001452,2]
[332826996,1721555472668,-500.0,0.0001452,2]
[332826997,1721555472680,-500.0,0.0001452,2]
[332826998,1721555472690,-581.65,0.0001452,2]
[332826999,1721555472699,-547.55,0.0001452,2]
[332827000,1721555472710,-500.0,0.0001452,2]
[332827001,1721555472720,-500.0,0.0001452,2]
[332827002,1721555472730,-500.0,0.0001452,2]
[332827003,1721555472739,-505.19984658,0.0001452,2]
[332827004,1721555472750,-500.0,0.0001452,2]
[332827005,1721555472760,-500.0,0.0001452,2]
[332827006,1721555472771,-500.0,0.0001452,2]
[332827007,1721555472780,-500.0,0.0001452,2]
[332827008,1721555472790,-500.0,0.0001452,2]
[332827009,1721555472800,-500.0,0.0001452,2]
[332827010,1721555472811,-500.0,0.0001452,2]
[332827011,1721555472821,-500.0,0.0001452,2]
[332827012,1721555472831,-459.15597309,0.0001452,2]
[332827013,1721555472840,-500.0,0.0001452,2]
[332827014,1721555472851,-513.70089173,0.0001452,2]
[332827015,1721555472866,-500.0,0.0001452,2]
[332827016,1721555472876,-729.89,0.0001452,2]
[332827017,1721555472889,-500.0,0.0001452,2]
[332827018,1721555472899,-691.71,0.0001452,2]
[332827019,1721555472908,-500.0,0.0001452,2]
[332827020,1721555472919,-612.18321095,0.0001452,2]
[332827021,1721555472928,-500.0,0.0001452,2]
[332827022,1721555472940,-500.0,0.0001452,2]
[332827023,1721555472950,-912.64,0.0001452,2]
[332827024,1721555472959,-500.0,0.0001452,2]
[332827025,1721555472969,-2388.42,0.0001452,2]
[332827026,1721555472980,-500.0,0.0001452,2]
[332827027,1721555472990,-500.0,0.0001452,2]
[332827028,1721555473001,-500.0,0.0001452,2]
[332827029,1721555473010,-500.0,0.0001452,2]
[332827030,1721555473019,-500.0,0.0001452,2]